[Event "Titled Tuesday Blitz December 20 Early 2022"]
[White "Hansch, Karsten"]
[Black "Shironin, Daniil Aleks"]
[WhiteFideId "24692239"]
[BlackFideId "55812198"]
[WhiteElo "2248"]
[BlackElo "2115"]
[Result "1/2-1/2"]
[Round "08"]
[TimeControl "180+2"]
[Date "2022.12.20"]
[WhiteClock "0:00:17"]
[BlackClock "0:00:13"]

1. e4 {[%clk 0:03:00]}  c5 {[%clk 0:03:00]} 2. Nf3 {[%clk 0:02:59]}  d6 {[%clk 0:03:00]} 3. d4 {[%clk 0:02:59]}  cxd4 {[%clk 0:03:01]} 4. Nxd4 {[%clk 0:03:00]}  Nf6 {[%clk 0:03:01]} 5. f3 {[%clk 0:03:00]}  a6 {[%clk 0:03:01]} 6. c4 {[%clk 0:03:00]}  b6 {[%clk 0:02:49]} 7. Nc3 {[%clk 0:02:59]}  Bb7 {[%clk 0:02:50]} 8. Be3 {[%clk 0:03:00]}  Nbd7 {[%clk 0:02:49]} 9. Qd2 {[%clk 0:03:00]}  e6 {[%clk 0:02:47]} 10. Rc1 {[%clk 0:03:00]}  Be7 {[%clk 0:02:46]} 11. Be2 {[%clk 0:03:00]}  O-O {[%clk 0:02:46]} 12. O-O {[%clk 0:03:00]}  Rc8 {[%clk 0:02:42]} 13. Rfd1 {[%clk 0:03:00]}  Qc7 {[%clk 0:02:41]} 14. Bf1 {[%clk 0:02:59]}  Qb8 {[%clk 0:02:40]} 15. b4 {[%clk 0:02:57]}  d5 {[%clk 0:02:21]} 16. cxd5 {[%clk 0:02:52]}  exd5 {[%clk 0:02:20]} 17. Nxd5 {[%clk 0:02:48]}  Nxd5 {[%clk 0:02:19]} 18. exd5 {[%clk 0:02:48]}  Bd6 {[%clk 0:02:07]} 19. g4 {[%clk 0:02:15]}  Ne5 {[%clk 0:01:53]} 20. Be2 {[%clk 0:01:42]}  Bxd5 {[%clk 0:01:51]} 21. Rxc8 {[%clk 0:01:30]}  Rxc8 {[%clk 0:01:47]} 22. Nf5 {[%clk 0:01:30]}  Bxf3 {[%clk 0:01:29]} 23. Nxd6 {[%clk 0:01:19]}  Rd8 {[%clk 0:01:14]} 24. Bxa6 {[%clk 0:01:06]}  Bxd1 {[%clk 0:01:03]} 25. Qxd1 {[%clk 0:00:40]}  Qxd6 {[%clk 0:00:58]} 26. Qxd6 {[%clk 0:00:37]}  Rxd6 {[%clk 0:00:57]} 27. Be2 {[%clk 0:00:33]}  Ng6 {[%clk 0:00:53]} 28. a4 {[%clk 0:00:28]}  Re6 {[%clk 0:00:47]} 29. Kf2 {[%clk 0:00:29]}  Rf6+ {[%clk 0:00:48]} 30. Ke1 {[%clk 0:00:28]}  Re6 {[%clk 0:00:48]} 31. Kf2 {[%clk 0:00:28]}  Ne5 {[%clk 0:00:45]} 32. a5 {[%clk 0:00:26]}  bxa5 {[%clk 0:00:44]} 33. bxa5 {[%clk 0:00:27]}  Nc6 {[%clk 0:00:23]} 34. a6 {[%clk 0:00:24]}  Re7 {[%clk 0:00:23]} 35. Bc5 {[%clk 0:00:20]}  Rc7 {[%clk 0:00:21]} 36. Bb6 {[%clk 0:00:19]}  Re7 {[%clk 0:00:19]} 37. Bf3 {[%clk 0:00:19]}  Na7 {[%clk 0:00:18]} 38. Bb7 {[%clk 0:00:19]}  Nb5 {[%clk 0:00:16]} 39. Bc5 {[%clk 0:00:17]}  Rc7 {[%clk 0:00:14]} 40. Bb6 {[%clk 0:00:17]}  Re7 {[%clk 0:00:14]} 41. Bc5 {[%clk 0:00:16]}  Rc7 {[%clk 0:00:13]} 42. Bb6 {[%clk 0:00:17]}  Re7 {[%clk 0:00:13]} 1/2-1/2


[Site "https://www.chess.com"]

[Event "Titled Tuesday Blitz December 20 Early 2022"]
[White "Harry_Rakkel"]
[Black "Slovak_fighter2000"]
[WhiteElo "2611"]
[BlackElo "2466"]
[Result "0-1"]
[Round "08"]
[TimeControl "180+2"]
[Date "2022.12.20"]
[WhiteClock "0:00:02"]
[BlackClock "0:00:04"]

1. e4 {[%clk 0:03:00]}  c6 {[%clk 0:02:59]} 2. Nf3 {[%clk 0:02:59]}  d5 {[%clk 0:02:59]} 3. d3 {[%clk 0:02:59]}  Bg4 {[%clk 0:02:57]} 4. h3 {[%clk 0:02:58]}  Bh5 {[%clk 0:02:55]} 5. Qe2 {[%clk 0:02:53]}  e6 {[%clk 0:02:53]} 6. g4 {[%clk 0:02:52]}  Bg6 {[%clk 0:02:52]} 7. h4 {[%clk 0:02:50]}  h6 {[%clk 0:02:41]} 8. Nbd2 {[%clk 0:02:33]}  Be7 {[%clk 0:02:37]} 9. h5 {[%clk 0:02:15]}  Bh7 {[%clk 0:02:31]} 10. Bg2 {[%clk 0:02:12]}  Nd7 {[%clk 0:02:17]} 11. b3 {[%clk 0:02:10]}  Bf6 {[%clk 0:01:46]} 12. e5 {[%clk 0:02:09]}  Bg5 {[%clk 0:01:46]} 13. O-O {[%clk 0:01:40]}  Bxd2 {[%clk 0:01:43]} 14. Bxd2 {[%clk 0:01:39]}  Ne7 {[%clk 0:01:43]} 15. a4 {[%clk 0:01:34]}  b6 {[%clk 0:01:30]} 16. Nh2 {[%clk 0:01:15]}  Qc7 {[%clk 0:01:13]} 17. f4 {[%clk 0:01:14]}  O-O {[%clk 0:01:12]} 18. Rae1 {[%clk 0:01:11]}  c5 {[%clk 0:01:01]} 19. Nf3 {[%clk 0:00:58]}  Rac8 {[%clk 0:00:59]} 20. Nh4 {[%clk 0:00:53]}  c4 {[%clk 0:00:56]} 21. f5 {[%clk 0:00:53]}  cxd3 {[%clk 0:00:51]} 22. cxd3 {[%clk 0:00:53]}  Nc6 {[%clk 0:00:44]} 23. Bf4 {[%clk 0:00:43]}  Nd4 {[%clk 0:00:41]} 24. Qf2 {[%clk 0:00:43]}  Nxb3 {[%clk 0:00:37]} 25. f6 {[%clk 0:00:38]}  Qc5 {[%clk 0:00:28]} 26. Be3 {[%clk 0:00:35]}  d4 {[%clk 0:00:27]} 27. fxg7 {[%clk 0:00:33]}  Kxg7 {[%clk 0:00:24]} 28. Bxh6+ {[%clk 0:00:30]}  Kxh6 {[%clk 0:00:17]} 29. Qf4+ {[%clk 0:00:28]}  Kg7 {[%clk 0:00:17]} 30. Qg5+ {[%clk 0:00:20]}  Kh8 {[%clk 0:00:16]} 31. Qh6 {[%clk 0:00:20]}  Qe7 {[%clk 0:00:11]} 32. Rf6 {[%clk 0:00:15]}  Rg8 {[%clk 0:00:08]} 33. g5 {[%clk 0:00:12]}  Rg7 {[%clk 0:00:07]} 34. g6 {[%clk 0:00:11]}  Rcg8 {[%clk 0:00:06]} 35. Kh2 {[%clk 0:00:10]}  Nxf6 {[%clk 0:00:04]} 36. exf6 {[%clk 0:00:06]}  Qxf6 {[%clk 0:00:05]} 37. Nf3 {[%clk 0:00:03]}  fxg6 {[%clk 0:00:04]} 38. Ng5 {[%clk 0:00:02]}  Qf4+ {[%clk 0:00:04]} 0-1


[Site "https://www.chess.com"]

[Event "Titled Tuesday Blitz December 20 Early 2022"]
[White "Harsha_Bharathakoti"]
[Black "Fera, Aryanti"]
[BlackFideId "7118988"]
[WhiteElo "2867"]
[BlackElo "1770"]
[Result "0-1"]
[Round "08"]
[TimeControl "180+2"]
[Date "2022.12.20"]
[WhiteClock "0:00:02"]
[BlackClock "0:00:06"]

1. e4 {[%clk 0:03:00]}  e5 {[%clk 0:02:59]} 2. Nf3 {[%clk 0:02:59]}  Nc6 {[%clk 0:03:00]} 3. Bc4 {[%clk 0:03:00]}  Bc5 {[%clk 0:02:59]} 4. c3 {[%clk 0:02:59]}  Nf6 {[%clk 0:02:59]} 5. d3 {[%clk 0:03:00]}  d6 {[%clk 0:02:59]} 6. a4 {[%clk 0:02:59]}  a5 {[%clk 0:02:57]} 7. O-O {[%clk 0:02:58]}  O-O {[%clk 0:02:57]} 8. h3 {[%clk 0:02:55]}  h6 {[%clk 0:02:56]} 9. Nbd2 {[%clk 0:02:54]}  Be6 {[%clk 0:02:52]} 10. Bxe6 {[%clk 0:02:46]}  fxe6 {[%clk 0:02:53]} 11. Re1 {[%clk 0:02:45]}  Qd7 {[%clk 0:02:35]} 12. Nf1 {[%clk 0:02:43]}  Rf7 {[%clk 0:02:36]} 13. Be3 {[%clk 0:02:38]}  Bxe3 {[%clk 0:02:33]} 14. Rxe3 {[%clk 0:02:38]}  Raf8 {[%clk 0:02:33]} 15. Qb3 {[%clk 0:02:34]}  b6 {[%clk 0:02:32]} 16. Qb5 {[%clk 0:02:30]}  g5 {[%clk 0:02:31]} 17. N1h2 {[%clk 0:02:14]}  Rg7 {[%clk 0:02:22]} 18. Ng4 {[%clk 0:01:31]}  h5 {[%clk 0:02:17]} 19. Nxf6+ {[%clk 0:01:27]}  Rxf6 {[%clk 0:02:18]} 20. Nh2 {[%clk 0:01:21]}  Kh7 {[%clk 0:02:00]} 21. Rf1 {[%clk 0:01:19]}  Nb8 {[%clk 0:01:53]} 22. Qxd7 {[%clk 0:01:19]}  Nxd7 {[%clk 0:01:54]} 23. b4 {[%clk 0:01:04]}  Rf8 {[%clk 0:01:43]} 24. b5 {[%clk 0:00:59]}  Nc5 {[%clk 0:01:21]} 25. d4 {[%clk 0:00:56]}  Nxa4 {[%clk 0:01:08]} 26. dxe5 {[%clk 0:00:53]}  dxe5 {[%clk 0:01:08]} 27. Nf3 {[%clk 0:00:53]}  Rd8 {[%clk 0:01:00]} 28. Nxe5 {[%clk 0:00:53]}  Nc5 {[%clk 0:01:00]} 29. Re2 {[%clk 0:00:46]}  a4 {[%clk 0:00:58]} 30. Ra1 {[%clk 0:00:45]}  Rgg8 {[%clk 0:00:50]} 31. f3 {[%clk 0:00:37]}  Kg7 {[%clk 0:00:50]} 32. Kf2 {[%clk 0:00:26]}  Kf6 {[%clk 0:00:50]} 33. Nc6 {[%clk 0:00:26]}  Rd3 {[%clk 0:00:49]} 34. Rc2 {[%clk 0:00:27]}  g4 {[%clk 0:00:47]} 35. hxg4 {[%clk 0:00:25]}  hxg4 {[%clk 0:00:48]} 36. Nb4 {[%clk 0:00:24]}  Rd7 {[%clk 0:00:44]} 37. Ke3 {[%clk 0:00:22]}  Rh8 {[%clk 0:00:37]} 38. Na6 {[%clk 0:00:20]}  Rd3+ {[%clk 0:00:33]} 39. Kf2 {[%clk 0:00:14]}  gxf3 {[%clk 0:00:29]} 40. Nxc5 {[%clk 0:00:14]}  bxc5 {[%clk 0:00:30]} 41. Rxa4 {[%clk 0:00:15]}  Rh2 {[%clk 0:00:30]} 42. Kg3 {[%clk 0:00:15]}  Rxg2+ {[%clk 0:00:22]} 43. Rxg2 {[%clk 0:00:15]}  fxg2+ {[%clk 0:00:23]} 44. Kxg2 {[%clk 0:00:16]}  Rxc3 {[%clk 0:00:23]} 45. Ra7 {[%clk 0:00:17]}  Ke5 {[%clk 0:00:21]} 46. Rxc7 {[%clk 0:00:17]}  Kxe4 {[%clk 0:00:22]} 47. b6 {[%clk 0:00:16]}  Kd5 {[%clk 0:00:20]} 48. Kf2 {[%clk 0:00:13]}  Rb3 {[%clk 0:00:21]} 49. b7 {[%clk 0:00:13]}  Kd6 {[%clk 0:00:21]} 50. Rg7 {[%clk 0:00:14]}  Kc6 {[%clk 0:00:20]} 51. Re7 {[%clk 0:00:14]}  Kd6 {[%clk 0:00:19]} 52. Rg7 {[%clk 0:00:15]}  Kc6 {[%clk 0:00:08]} 53. Re7 {[%clk 0:00:15]}  Rxb7 {[%clk 0:00:09]} 54. Rxe6+ {[%clk 0:00:15]}  Kd5 {[%clk 0:00:09]} 55. Re8 {[%clk 0:00:08]}  Kc4 {[%clk 0:00:06]} 56. Ke2 {[%clk 0:00:08]}  Rd7 {[%clk 0:00:06]} 57. Rc8 {[%clk 0:00:02]}  Kb4 {[%clk 0:00:06]} 58. Rb8+ {[%clk 0:00:02]}  Kc3 {[%clk 0:00:06]} 0-1


[Site "https://www.chess.com"]

[Event "Titled Tuesday Blitz December 20 Early 2022"]
[White "Ivan11Martic"]
[Black "Patricks, Anastasia"]
[BlackFideId "7101929"]
[WhiteElo "2528"]
[BlackElo "1778"]
[Result "0-1"]
[Round "08"]
[TimeControl "180+2"]
[Date "2022.12.20"]
[WhiteClock "0:01:12"]
[BlackClock "0:01:35"]

1. Nf3 {[%clk 0:03:00]}  g6 {[%clk 0:02:55]} 2. c4 {[%clk 0:02:58]}  Bg7 {[%clk 0:02:55]} 3. Nc3 {[%clk 0:02:58]}  d6 {[%clk 0:02:55]} 4. d4 {[%clk 0:02:54]}  Nd7 {[%clk 0:02:54]} 5. e4 {[%clk 0:02:52]}  e5 {[%clk 0:02:54]} 6. Be2 {[%clk 0:02:52]}  Ngf6 {[%clk 0:02:54]} 7. O-O {[%clk 0:02:51]}  O-O {[%clk 0:02:54]} 8. Be3 {[%clk 0:02:50]}  Ng4 {[%clk 0:02:54]} 9. Bg5 {[%clk 0:02:49]}  f6 {[%clk 0:02:54]} 10. Bc1 {[%clk 0:02:44]}  Nh6 {[%clk 0:02:55]} 11. Re1 {[%clk 0:02:34]}  Nf7 {[%clk 0:02:55]} 12. b4 {[%clk 0:02:31]}  a5 {[%clk 0:02:55]} 13. bxa5 {[%clk 0:02:30]}  Rxa5 {[%clk 0:02:55]} 14. a4 {[%clk 0:02:25]}  exd4 {[%clk 0:02:53]} 15. Nxd4 {[%clk 0:02:26]}  Nc5 {[%clk 0:02:53]} 16. Ba3 {[%clk 0:02:13]}  Re8 {[%clk 0:02:51]} 17. Bf1 {[%clk 0:02:09]}  f5 {[%clk 0:02:42]} 18. Bb4 {[%clk 0:02:06]}  Ra8 {[%clk 0:02:36]} 19. Rb1 {[%clk 0:02:06]}  Nxe4 {[%clk 0:02:29]} 20. Nxe4 {[%clk 0:02:07]}  fxe4 {[%clk 0:02:30]} 21. c5 {[%clk 0:02:03]}  dxc5 {[%clk 0:02:24]} 22. Bxc5 {[%clk 0:02:03]}  b6 {[%clk 0:02:25]} 23. Bc4 {[%clk 0:01:51]}  bxc5 {[%clk 0:02:19]} 24. Qb3 {[%clk 0:01:51]}  Rf8 {[%clk 0:02:10]} 25. Nc6 {[%clk 0:01:46]}  Qf6 {[%clk 0:02:10]} 26. Rxe4 {[%clk 0:01:43]}  Qxc6 {[%clk 0:02:03]} 27. Bd5 {[%clk 0:01:41]}  Qa6 {[%clk 0:02:01]} 28. Bxa8 {[%clk 0:01:38]}  Qxa8 {[%clk 0:02:01]} 29. Re7 {[%clk 0:01:38]}  Qc6 {[%clk 0:01:44]} 30. Rd1 {[%clk 0:01:29]}  Bf6 {[%clk 0:01:44]} 31. Re3 {[%clk 0:01:24]}  Bb7 {[%clk 0:01:35]} 32. Rf3 {[%clk 0:01:16]}  Kg7 {[%clk 0:01:36]} 33. h3 {[%clk 0:01:13]}  Ng5 {[%clk 0:01:36]} 34. Rf4 {[%clk 0:01:12]}  Qxg2# {[%clk 0:01:35]} 0-1


[Site "https://www.chess.com"]

[Event "Titled Tuesday Blitz December 20 Early 2022"]
[White "Jacomet Rodriguez, Josep-M."]
[Black "Imperial, Genghis"]
[WhiteFideId "54509815"]
[BlackFideId "5230403"]
[WhiteElo "3034"]
[BlackElo "1812"]
[Result "1-0"]
[Round "08"]
[TimeControl "180+2"]
[Date "2022.12.20"]
[WhiteClock "0:01:06"]
[BlackClock "0:01:18"]

1. Nf3 {[%clk 0:03:00]}  Nf6 {[%clk 0:02:56]} 2. b3 {[%clk 0:03:01]}  g6 {[%clk 0:02:54]} 3. Bb2 {[%clk 0:03:02]}  Bg7 {[%clk 0:02:55]} 4. g3 {[%clk 0:03:02]}  O-O {[%clk 0:02:55]} 5. c4 {[%clk 0:03:03]}  d6 {[%clk 0:02:52]} 6. Bg2 {[%clk 0:03:01]}  e5 {[%clk 0:02:51]} 7. d3 {[%clk 0:03:01]}  Re8 {[%clk 0:02:51]} 8. O-O {[%clk 0:03:01]}  Nc6 {[%clk 0:02:51]} 9. e3 {[%clk 0:03:01]}  h6 {[%clk 0:02:49]} 10. Nc3 {[%clk 0:02:59]}  Be6 {[%clk 0:02:49]} 11. a3 {[%clk 0:02:59]}  Qd7 {[%clk 0:02:49]} 12. Re1 {[%clk 0:02:56]}  Bh3 {[%clk 0:02:49]} 13. Rc1 {[%clk 0:02:52]}  Bxg2 {[%clk 0:02:48]} 14. Kxg2 {[%clk 0:02:52]}  d5 {[%clk 0:02:45]} 15. cxd5 {[%clk 0:02:48]}  Nxd5 {[%clk 0:02:46]} 16. Ne4 {[%clk 0:02:48]}  b6 {[%clk 0:02:37]} 17. Qc2 {[%clk 0:02:47]}  Nd8 {[%clk 0:02:31]} 18. Ned2 {[%clk 0:02:38]}  c5 {[%clk 0:02:29]} 19. e4 {[%clk 0:02:25]}  Nc7 {[%clk 0:02:27]} 20. b4 {[%clk 0:02:26]}  Nb7 {[%clk 0:02:25]} 21. Nc4 {[%clk 0:02:25]}  f6 {[%clk 0:02:21]} 22. Red1 {[%clk 0:02:25]}  Rad8 {[%clk 0:02:20]} 23. bxc5 {[%clk 0:02:23]}  Nxc5 {[%clk 0:02:20]} 24. d4 {[%clk 0:02:23]}  exd4 {[%clk 0:02:20]} 25. Bxd4 {[%clk 0:02:19]}  Qe7 {[%clk 0:02:16]} 26. e5 {[%clk 0:02:17]}  f5 {[%clk 0:02:00]} 27. Nd6 {[%clk 0:02:16]}  Rf8 {[%clk 0:02:00]} 28. Bxc5 {[%clk 0:02:14]}  bxc5 {[%clk 0:02:00]} 29. Qxc5 {[%clk 0:02:15]}  Ne6 {[%clk 0:01:59]} 30. Qc4 {[%clk 0:02:07]}  Kh7 {[%clk 0:01:58]} 31. Rb1 {[%clk 0:01:48]}  f4 {[%clk 0:01:53]} 32. Rb7 {[%clk 0:01:46]}  Rd7 {[%clk 0:01:37]} 33. Nf5 {[%clk 0:01:45]}  Rxb7 {[%clk 0:01:33]} 34. Nxe7 {[%clk 0:01:45]}  Rxe7 {[%clk 0:01:34]} 35. Rd6 {[%clk 0:01:46]}  Ng5 {[%clk 0:01:30]} 36. Nxg5+ {[%clk 0:01:15]}  hxg5 {[%clk 0:01:31]} 37. Qd3 {[%clk 0:01:15]}  f3+ {[%clk 0:01:29]} 38. Kh3 {[%clk 0:01:13]}  Rf5 {[%clk 0:01:22]} 39. g4 {[%clk 0:01:11]}  Bxe5 {[%clk 0:01:22]} 40. gxf5 {[%clk 0:01:09]}  Bxd6 {[%clk 0:01:18]} 41. Qxd6 {[%clk 0:01:06]} 1-0


[Site "https://www.chess.com"]

[Event "Titled Tuesday Blitz December 20 Early 2022"]
[White "JohnWhite1952"]
[Black "Larochelle, Martial"]
[BlackFideId "2016311"]
[WhiteElo "1978"]
[BlackElo "2039"]
[Result "0-1"]
[Round "08"]
[TimeControl "180+2"]
[Date "2022.12.20"]
[WhiteClock "0:00:01"]
[BlackClock "0:00:30"]

1. e4 {[%clk 0:02:58]}  e5 {[%clk 0:03:00]} 2. Nf3 {[%clk 0:02:57]}  Nf6 {[%clk 0:02:56]} 3. d4 {[%clk 0:02:48]}  Nxe4 {[%clk 0:02:55]} 4. Bd3 {[%clk 0:02:46]}  Nc6 {[%clk 0:02:53]} 5. Bxe4 {[%clk 0:02:37]}  d5 {[%clk 0:02:52]} 6. Nxe5 {[%clk 0:02:19]}  Nxe5 {[%clk 0:02:50]} 7. dxe5 {[%clk 0:02:18]}  dxe4 {[%clk 0:02:50]} 8. Qxd8+ {[%clk 0:02:16]}  Kxd8 {[%clk 0:02:51]} 9. O-O {[%clk 0:02:10]}  Bc5 {[%clk 0:02:48]} 10. Nc3 {[%clk 0:02:04]}  Bf5 {[%clk 0:02:44]} 11. Re1 {[%clk 0:01:59]}  Ke7 {[%clk 0:02:43]} 12. Nxe4 {[%clk 0:01:56]}  Bxe4 {[%clk 0:02:42]} 13. Rxe4 {[%clk 0:01:56]}  Rad8 {[%clk 0:02:43]} 14. Bf4 {[%clk 0:01:53]}  Ke6 {[%clk 0:02:39]} 15. Rae1 {[%clk 0:01:40]}  Rd5 {[%clk 0:02:29]} 16. a3 {[%clk 0:01:30]}  b5 {[%clk 0:02:26]} 17. c4 {[%clk 0:01:15]}  bxc4 {[%clk 0:02:23]} 18. Rxc4 {[%clk 0:01:14]}  a5 {[%clk 0:02:19]} 19. Rec1 {[%clk 0:01:07]}  Rhd8 {[%clk 0:02:18]} 20. h3 {[%clk 0:01:04]}  Bb6 {[%clk 0:02:12]} 21. Rc6+ {[%clk 0:01:02]}  Kf5 {[%clk 0:02:10]} 22. Bg3 {[%clk 0:00:58]}  Rd2 {[%clk 0:02:08]} 23. R6c2 {[%clk 0:00:53]}  a4 {[%clk 0:02:05]} 24. Rc4 {[%clk 0:00:42]}  Rxb2 {[%clk 0:02:01]} 25. Rxa4 {[%clk 0:00:40]}  Rdd2 {[%clk 0:02:01]} 26. Rf4+ {[%clk 0:00:38]}  Ke6 {[%clk 0:02:00]} 27. Rf3 {[%clk 0:00:32]}  Ra2 {[%clk 0:01:54]} 28. h4 {[%clk 0:00:27]}  h5 {[%clk 0:01:52]} 29. Kf1 {[%clk 0:00:22]}  Bd4 {[%clk 0:01:43]} 30. a4 {[%clk 0:00:15]}  c5 {[%clk 0:01:34]} 31. Rf4 {[%clk 0:00:09]}  Rxa4 {[%clk 0:01:27]} 32. Re4 {[%clk 0:00:07]}  Raa2 {[%clk 0:01:23]} 33. Ke1 {[%clk 0:00:07]}  Kd5 {[%clk 0:01:13]} 34. Rf4 {[%clk 0:00:04]}  Bxe5 {[%clk 0:00:51]} 35. Rf5 {[%clk 0:00:04]}  Re2+ {[%clk 0:00:51]} 36. Kf1 {[%clk 0:00:03]}  f6 {[%clk 0:00:42]} 37. Bxe5 {[%clk 0:00:03]}  fxe5 {[%clk 0:00:42]} 38. Rxh5 {[%clk 0:00:01]}  Rxf2+ {[%clk 0:00:42]} 39. Ke1 {[%clk 0:00:01]}  Rxg2 {[%clk 0:00:42]} 40. Kf1 {[%clk 0:00:01]}  Rh2 {[%clk 0:00:39]} 41. Kg1 {[%clk 0:00:01]}  c4 {[%clk 0:00:38]} 42. Rg5 {[%clk 0:00:01]}  Rxh4 {[%clk 0:00:37]} 43. Rxg7 {[%clk 0:00:01]}  Rf4 {[%clk 0:00:32]} 44. Rg2 {[%clk 0:00:01]}  Rxg2+ {[%clk 0:00:30]} 45. Kxg2 {[%clk 0:00:02]}  Kc5 {[%clk 0:00:31]} 46. Kg3 {[%clk 0:00:01]}  Kd4 {[%clk 0:00:32]} 47. Kg2 {[%clk 0:00:01]}  c3 {[%clk 0:00:33]} 48. Kg3 {[%clk 0:00:01]}  Kc4 {[%clk 0:00:33]} 49. Kg2 {[%clk 0:00:01]}  Kd3 {[%clk 0:00:34]} 50. Kg3 {[%clk 0:00:01]}  c2 {[%clk 0:00:35]} 51. Re1 {[%clk 0:00:01]}  Kd2 {[%clk 0:00:36]} 52. Rxe5 {[%clk 0:00:01]}  Rc4 {[%clk 0:00:33]} 53. Rd5+ {[%clk 0:00:01]}  Kc3 {[%clk 0:00:34]} 54. Kf3 {[%clk 0:00:01]}  c1=Q {[%clk 0:00:34]} 55. Re5 {[%clk 0:00:01]}  Qf4+ {[%clk 0:00:30]} 0-1


[Site "https://www.chess.com"]

[Event "Titled Tuesday Blitz December 20 Early 2022"]
[White "Kildepiotr"]
[Black "RianKapriaga"]
[WhiteElo "2682"]
[BlackElo "2327"]
[Result "1-0"]
[Round "08"]
[TimeControl "180+2"]
[Date "2022.12.20"]
[WhiteClock "0:01:10"]
[BlackClock "0:00:02"]

1. Nf3 {[%clk 0:03:00]}  d5 {[%clk 0:02:59]} 2. g3 {[%clk 0:03:01]}  Nf6 {[%clk 0:02:59]} 3. Bg2 {[%clk 0:03:01]}  Bf5 {[%clk 0:02:59]} 4. O-O {[%clk 0:03:02]}  e6 {[%clk 0:03:00]} 5. c4 {[%clk 0:03:03]}  Na6 {[%clk 0:02:55]} 6. cxd5 {[%clk 0:03:02]}  exd5 {[%clk 0:02:55]} 7. d3 {[%clk 0:03:03]}  h6 {[%clk 0:02:47]} 8. Nc3 {[%clk 0:03:02]}  Be7 {[%clk 0:02:47]} 9. Qb3 {[%clk 0:02:58]}  Nc5 {[%clk 0:02:43]} 10. Qc2 {[%clk 0:02:57]}  O-O {[%clk 0:02:40]} 11. b4 {[%clk 0:02:57]}  Ne6 {[%clk 0:02:32]} 12. a3 {[%clk 0:02:57]}  c6 {[%clk 0:02:31]} 13. e4 {[%clk 0:02:51]}  Bh7 {[%clk 0:02:27]} 14. Re1 {[%clk 0:02:43]}  Re8 {[%clk 0:02:26]} 15. Bb2 {[%clk 0:02:40]}  a6 {[%clk 0:02:15]} 16. Rad1 {[%clk 0:02:30]}  Bf8 {[%clk 0:02:13]} 17. Na4 {[%clk 0:02:25]}  Nd7 {[%clk 0:01:57]} 18. exd5 {[%clk 0:02:22]}  cxd5 {[%clk 0:01:56]} 19. Ne5 {[%clk 0:02:19]}  Nxe5 {[%clk 0:01:54]} 20. Rxe5 {[%clk 0:02:20]}  Rc8 {[%clk 0:01:36]} 21. Qe2 {[%clk 0:02:19]}  Nc7 {[%clk 0:01:28]} 22. Nb6 {[%clk 0:02:15]}  Rxe5 {[%clk 0:01:25]} 23. Qxe5 {[%clk 0:02:14]}  Rb8 {[%clk 0:01:19]} 24. Nxd5 {[%clk 0:02:11]}  Nxd5 {[%clk 0:01:18]} 25. Bxd5 {[%clk 0:02:10]}  b5 {[%clk 0:01:10]} 26. Re1 {[%clk 0:02:08]}  Bg6 {[%clk 0:01:07]} 27. h4 {[%clk 0:02:07]}  Rc8 {[%clk 0:00:53]} 28. h5 {[%clk 0:02:07]}  Bh7 {[%clk 0:00:50]} 29. Bxf7+ {[%clk 0:02:05]}  Kh8 {[%clk 0:00:45]} 30. Bg6 {[%clk 0:01:43]}  Bxg6 {[%clk 0:00:43]} 31. hxg6 {[%clk 0:01:43]}  Qxd3 {[%clk 0:00:38]} 32. Qe6 {[%clk 0:01:42]}  Rd8 {[%clk 0:00:24]} 33. Be5 {[%clk 0:01:30]}  Qd5 {[%clk 0:00:14]} 34. Qxd5 {[%clk 0:01:18]}  Rxd5 {[%clk 0:00:14]} 35. Bf4 {[%clk 0:01:18]}  Kg8 {[%clk 0:00:13]} 36. Re6 {[%clk 0:01:18]}  Rd3 {[%clk 0:00:09]} 37. Rxa6 {[%clk 0:01:16]}  Rd5 {[%clk 0:00:08]} 38. Kg2 {[%clk 0:01:16]}  Be7 {[%clk 0:00:06]} 39. Ra8+ {[%clk 0:01:14]}  Bf8 {[%clk 0:00:06]} 40. Kf3 {[%clk 0:01:12]}  h5 {[%clk 0:00:05]} 41. Ke4 {[%clk 0:01:12]}  Rd1 {[%clk 0:00:02]} 42. Rb8 {[%clk 0:01:10]} 1-0


[Site "https://www.chess.com"]

[Event "Titled Tuesday Blitz December 20 Early 2022"]
[White "Kopylov_Alex"]
[Black "Manukyan_Artak"]
[WhiteElo "2790"]
[BlackElo "2560"]
[Result "1-0"]
[Round "08"]
[TimeControl "180+2"]
[Date "2022.12.20"]
[WhiteClock "0:01:07"]
[BlackClock "0:00:06"]

1. e4 {[%clk 0:03:00]}  c6 {[%clk 0:02:59]} 2. Nc3 {[%clk 0:02:59]}  d5 {[%clk 0:03:00]} 3. Qe2 {[%clk 0:02:59]}  d4 {[%clk 0:02:58]} 4. Nd1 {[%clk 0:02:59]}  e5 {[%clk 0:02:58]} 5. d3 {[%clk 0:02:58]}  Bb4+ {[%clk 0:02:55]} 6. c3 {[%clk 0:02:57]}  Ba5 {[%clk 0:02:52]} 7. f4 {[%clk 0:02:54]}  c5 {[%clk 0:02:44]} 8. Nf3 {[%clk 0:02:54]}  Nc6 {[%clk 0:02:42]} 9. Nxe5 {[%clk 0:02:53]}  Nxe5 {[%clk 0:02:42]} 10. fxe5 {[%clk 0:02:54]}  Ne7 {[%clk 0:02:42]} 11. Bd2 {[%clk 0:02:47]}  Nc6 {[%clk 0:02:41]} 12. a3 {[%clk 0:02:41]}  O-O {[%clk 0:02:34]} 13. Rc1 {[%clk 0:02:30]}  dxc3 {[%clk 0:02:22]} 14. bxc3 {[%clk 0:02:28]}  Nxe5 {[%clk 0:02:22]} 15. Nf2 {[%clk 0:02:27]}  b6 {[%clk 0:01:58]} 16. d4 {[%clk 0:02:27]}  cxd4 {[%clk 0:01:55]} 17. cxd4 {[%clk 0:02:27]}  Qxd4 {[%clk 0:01:51]} 18. Bxa5 {[%clk 0:02:28]}  bxa5 {[%clk 0:01:51]} 19. Qd2 {[%clk 0:02:28]}  Qb6 {[%clk 0:01:43]} 20. Be2 {[%clk 0:02:25]}  Rd8 {[%clk 0:01:38]} 21. Qc3 {[%clk 0:02:25]}  f6 {[%clk 0:01:29]} 22. O-O {[%clk 0:02:25]}  Ba6 {[%clk 0:01:28]} 23. Bxa6 {[%clk 0:02:25]}  Qxa6 {[%clk 0:01:29]} 24. Rfd1 {[%clk 0:02:23]}  Qb6 {[%clk 0:01:24]} 25. Qc5 {[%clk 0:02:20]}  Rxd1+ {[%clk 0:01:23]} 26. Nxd1 {[%clk 0:02:21]}  Nd3 {[%clk 0:01:10]} 27. Qxb6 {[%clk 0:02:21]}  axb6 {[%clk 0:01:10]} 28. Rc7 {[%clk 0:02:21]}  Nc5 {[%clk 0:01:06]} 29. Nc3 {[%clk 0:02:20]}  Re8 {[%clk 0:01:05]} 30. Nd5 {[%clk 0:02:16]}  Nxe4 {[%clk 0:01:01]} 31. Nxb6 {[%clk 0:02:16]}  Rb8 {[%clk 0:01:00]} 32. Rc6 {[%clk 0:02:12]}  h5 {[%clk 0:00:56]} 33. Kf1 {[%clk 0:02:08]}  Kh7 {[%clk 0:00:53]} 34. Ke2 {[%clk 0:02:07]}  Kg6 {[%clk 0:00:50]} 35. Kd3 {[%clk 0:02:06]}  Nf2+ {[%clk 0:00:46]} 36. Kd4 {[%clk 0:02:06]}  Ng4 {[%clk 0:00:47]} 37. h3 {[%clk 0:02:06]}  Ne5 {[%clk 0:00:47]} 38. Rd6 {[%clk 0:02:06]}  h4 {[%clk 0:00:38]} 39. a4 {[%clk 0:01:57]}  Kf5 {[%clk 0:00:36]} 40. Kc5 {[%clk 0:01:54]}  g5 {[%clk 0:00:33]} 41. Kb5 {[%clk 0:01:53]}  g4 {[%clk 0:00:22]} 42. hxg4+ {[%clk 0:01:47]}  Nxg4 {[%clk 0:00:22]} 43. Kxa5 {[%clk 0:01:44]}  Ne3 {[%clk 0:00:22]} 44. Rd2 {[%clk 0:01:31]}  Rxb6 {[%clk 0:00:21]} 45. Rf2+ {[%clk 0:01:31]}  Kg4 {[%clk 0:00:19]} 46. Kxb6 {[%clk 0:01:32]}  f5 {[%clk 0:00:18]} 47. Kc5 {[%clk 0:01:27]}  Kg3 {[%clk 0:00:16]} 48. Rf3+ {[%clk 0:01:27]}  Kxg2 {[%clk 0:00:17]} 49. Rxe3 {[%clk 0:01:27]}  f4 {[%clk 0:00:17]} 50. Re8 {[%clk 0:01:07]}  f3 {[%clk 0:00:16]} 51. Rg8+ {[%clk 0:01:07]}  Kh2 {[%clk 0:00:14]} 52. Rf8 {[%clk 0:01:07]}  Kg2 {[%clk 0:00:14]} 53. a5 {[%clk 0:01:07]}  h3 {[%clk 0:00:14]} 54. a6 {[%clk 0:01:07]}  h2 {[%clk 0:00:15]} 55. a7 {[%clk 0:01:08]}  h1=Q {[%clk 0:00:15]} 56. a8=Q {[%clk 0:01:08]}  Qc1+ {[%clk 0:00:11]} 57. Kd5 {[%clk 0:01:07]}  Qd2+ {[%clk 0:00:11]} 58. Ke5 {[%clk 0:01:08]}  Qc3+ {[%clk 0:00:09]} 59. Kf4 {[%clk 0:01:07]}  Qb4+ {[%clk 0:00:08]} 60. Kg5 {[%clk 0:01:07]}  Qc5+ {[%clk 0:00:06]} 61. Rf5 {[%clk 0:01:07]}  Qe3+ {[%clk 0:00:06]} 62. Kg4 {[%clk 0:01:07]} 1-0


[Site "https://www.chess.com"]